[Event "Austrian Bundesliga 2023-24"]
[Site "Austria"]
[Date "2024.03.21"]
[Round "8.4"]
[White "Korpa, Bence"]
[Black "Halvax, Georg"]
[Result "1-0"]
[ECO "B22"]
[WhiteElo "2545"]
[BlackElo "2452"]
[Annotator "TA"]
[PlyCount "91"]
[EventDate "2023.10.21"]
[EventType "team-tourn"]
[EventCountry "AUT"]
[SourceTitle "playchess.com"]
[Source "ChessBase"]
[SourceQuality "1"]
[TimeControl "40/5400+30:1800+30"]

{[%evp 12,91,17,16,20,0,0,6,47,34,35,10,89,88,124,146,159,170,165,166,197,208,202,202,192,193,210,197,193,138,147,145,124,131,155,139,139,141,168,154,210,196,202,224,273,264,288,305,323,329,329,293,392,433,409,443,433,439,471,461,471,471,471,460,478,432,303,257,526,482,712,673,1412,1224,4595,5193,29978,29979,29977,29976,29978,29979]} 1. e4 {[%emt 0:00:16]} c5 {[%emt 0:00:43]} 2. c3 {[%emt 0:00:12]} d5 {[%emt 0:00:12]} 3. exd5 {[%emt 0:00:09]} Qxd5 {[%emt 0:00:09]} 4. d4 {[%emt 0:00:08]} Nc6 {[%emt 0:00:07]} 5. Nf3 {[%emt 0:00:12]} Bg4 {[%emt 0:00:08]} 6. dxc5 {[%emt 0:01:24]} Qxd1+ {[%emt 0:00:07]} 7. Kxd1 {[%emt 0:00:07]} O-O-O+ {[%emt 0:00:26]} 8. Bd2 {[%emt 0:00:35]} Nf6 {[%emt 0:00:06]} 9. Kc1 {[%emt 0:01:14]} e5 {[%emt 0:02:32][%cal Of6e4,Be7e5,Be5e4][%mdl 32] Die Stellung ist ausgeglichen.} 10. b4 {[%emt 0:00:12]} e4 {[%emt 0:03:08]} 11. h3 {[%emt 0:00:33]} (11. Ng5 {hält die Spannung aufrecht.} Ne5 12. Na3 h6 13. f4) 11... Bh5 {[%emt 0:13:47]} ({Natürlich nicht} 11... exf3 $6 12. hxg4 a5 (12... Nxg4 13. gxf3 Nf6 14. Bg5 $18) 13. gxf3 $16) (11... Bxf3 $11 12. gxf3 exf3) 12. Nh4 $16 {[%emt 0:17:26]} Ne5 {[%emt 0:08:09]} 13. Na3 {[%emt 0:08:27]} Nd3+ {[%emt 0:13:07]} 14. Bxd3 {[%emt 0:00:09]} Rxd3 {[%emt 0:00:45]} 15. Nc4 {[%emt 0:10:33]} e3 {[%emt 0:05:54]} 16. fxe3 {[%emt 0:01:19]} ({Jedoch nicht} 16. Nxe3 Ne4) 16... Ne4 {[%emt 0:00:22]} 17. Kc2 {[%emt 0:03:42]} Rd7 {[%emt 0:06:25] [#]} 18. g4 $1 {[%emt 0:02:14]} Be7 {[%emt 0:02:29]} 19. gxh5 {[%emt 0:07:47]} Bxh4 {[%emt 0:00:58]} 20. Rhd1 {[%emt 0:00:32]} (20. Be1 $18 Bf6 21. h6) 20... Rhd8 {[%emt 0:11:09]} 21. Be1 {[%emt 0:00:55]} Rxd1 {[%emt 0:10:45]} 22. Rxd1 {[%emt 0:00:08]} Rxd1 {[%emt 0:00:08]} 23. Kxd1 {[%emt 0:00:05]} Bxe1 {[%emt 0:00:05]} 24. Kxe1 {[%emt 0:00:06]} Nxc3 {[%emt 0:00:04][%mdl 4096] Endspiel. KN-KN} 25. a3 {[%emt 0:01:13]} Ne4 {[%emt 0:04:17]} (25... Kb8 $16 {war nötig.} 26. Nd6 Nb1) 26. Ke2 $18 {[%emt 0:00:41]} Kd7 {[%emt 0:01:44]} 27. Kf3 {[%emt 0:03:52]} Ng5+ {[%emt 0:01:42]} 28. Kg4 {[%emt 0:01:14]} f6 {[%emt 0:03:10]} 29. Nd6 {[%emt 0:00:27] Verhindert Ne4} b6 {[%emt 0:01:24]} 30. h4 {[%emt 0:09:32]} Ne6 {[%emt 0:02:15]} 31. Ne4 {[%emt 0:00:13]} Ke7 {[%emt 0:04:35]} 32. cxb6 {[%emt 0:10:04]} axb6 {[%emt 0:00:13]} 33. Nc3 {[%emt 0:00:32]} Nc7 {[%emt 0:01:14]} 34. a4 {[%emt 0:05:52]} Ke6 {[%emt 0:00:28]} 35. a5 {[%emt 0:01:33]} bxa5 {[%emt 0:00:34]} 36. bxa5 {[%emt 0:00:06]} Ke5 {[%emt 0:00:20]} 37. Kf3 {[%emt 0:00:10]} Na6 {[%emt 0:01:19]} 38. Ne4 {[%emt 0:01:10]} Nc7 {[%emt 0:00:34]} 39. Ng3 {[%emt 0:00:43][%cal Oh5h6] Droht h6! und aus.} g6 $2 {[%emt 0:01:05]} (39... f5 40. Ne2 Kf6) 40. h6 {[%emt 0:00:00]} Na6 {[%emt 0:00:00]} (40... f5 $142 41. Ne2 Kf6) 41. Ne2 {[%emt 0:12:19]} Nc5 {[%emt 0:09:02]} 42. Nf4 {[%emt 0:03:14]} Kf5 {[%emt 0:09:37] [#]} 43. e4+ $1 {[%emt 0:01:12][%mdl 512]} Nxe4 {[%emt 0:00:02]} (43... Ke5 44. Nd3+) 44. a6 {[%emt 0:00:09] Weiß setzt Matt.} Nd2+ {[%emt 0:00:03]} 45. Ke2 {[%emt 0:00:28]} Nc4 {[%emt 0:00:13]} 46. Nd5 {[%emt 0:00:14] Gewichteter Fehlerwert: Weiß=0.05 (makellos) /Schwarz=0.38.  Fehler:       	Weiß=1     	Schwarz=4     Ungenau:       	---       	Schwarz=3     OK:         	Weiß=17    	Schwarz=13    Bester:       	Weiß=4     	Schwarz=3} 1-0

[Event "Austrian Bundesliga 2023-24"]
[Site "Austria"]
[Date "2024.03.21"]
[Round "8.5"]
[White "Kreisl, Robert"]
[Black "Mesaros, Florian"]
[Result "1/2-1/2"]
[ECO "D38"]
[WhiteElo "2260"]
[BlackElo "2414"]
[Annotator "TA"]
[PlyCount "43"]
[EventDate "2023.10.21"]
[EventType "team-tourn"]
[EventCountry "AUT"]
[SourceTitle "playchess.com"]
[Source "ChessBase"]
[SourceQuality "1"]
[TimeControl "40/5400+30:1800+30"]

{[%evp 14,43,24,27,39,31,43,16,27,34,30,32,29,24,35,34,41,35,54,52,58,26,45,0,38,0,46,0,40,0,44,0]} 1. d4 {[%emt 0:00:04]} d5 {[%emt 0:00:17]} 2. c4 {[%emt 0:00:37]} e6 {[%emt 0:00:29]} 3. Nf3 {[%emt 0:01:29]} Nf6 {[%emt 0:00:12]} 4. Nc3 {[%emt 0:00:50]} Bb4 {[%emt 0:01:02]} 5. Bg5 {[%emt 0:01:51]} h6 {[%emt 0:00:39]} 6. Bxf6 {[%emt 0:00:17]} Qxf6 {[%emt 0:00:07]} 7. Qa4+ {[%emt 0:05:39]} Nc6 {[%emt 0:00:08]} 8. e3 {[%emt 0:00:05]} Bd7 {[%emt 0:06:18]} 9. Qb3 {[%emt 0:07:01]} dxc4 {[%emt 0:07:11]} 10. Qxc4 {[%emt 0:01:32]} O-O {[%emt 0:06:45] The position is equal.} 11. Be2 {[%emt 0:01:09]} a6 {[%emt 0:15:17]} 12. O-O {[%emt 0:04:20]} Bd6 {[%emt 0:02:29] Wards off Ne5} 13. Ne4 {[%emt 0:04:47]} Qe7 {[%emt 0:00:50]} 14. Rac1 {[%emt 0:02:44]} Rac8 {[%emt 0:06:46]} 15. Nc5 {[%emt 0:08:32]} Rb8 {[%emt 0:09:05]} 16. Rfd1 {[%emt 0:13:20]} Rfd8 {[%emt 0:05:36]} 17. Ne4 {[%emt 0:07:18]} Rdc8 {[%emt 0:02:27]} 18. Nc5 {[%emt 0:03:40]} Be8 {[%emt 0:03:45]} 19. Ne4 {[%emt 0:03:50]} Bd7 {[%emt 0:04:05]} 20. Nc5 {[%emt 0:00:08]} (20. Qb3 $14 {is superior.}) 20... Be8 {[%emt 0:00:40]} 21. Ne4 {[%emt 0:00:03]} Bd7 {[%emt 0:01:46]} 22. Nc5 {Weighted Error Value: White=0.16 (very precise) /Black=0.11 (very precise) .  Mistake:       	White=1     	---        Inaccurate:     	White=4     	Black=2      OK:         	White=2     	Black=5} 1/2-1/2

[Event "Austrian Bundesliga 2023-24"]
[Site "Austria"]
[Date "2024.03.21"]
[Round "8.6"]
[White "Gschnitzer, Adrian"]
[Black "Hartl, Daniel"]
[Result "1-0"]
[ECO "C55"]
[WhiteElo "2423"]
[BlackElo "2248"]
[Annotator "TA"]
[PlyCount "81"]
[EventDate "2023.10.21"]
[EventType "team-tourn"]
[EventCountry "AUT"]
[SourceTitle "playchess.com"]
[Source "ChessBase"]
[SourceQuality "1"]
[TimeControl "40/5400+30:1800+30"]

{[%evp 13,81,37,44,41,49,39,35,37,31,35,32,28,47,27,35,54,44,39,50,43,45,46,48,42,48,16,27,23,18,20,31,6,19,16,16,16,24,0,0,-48,0,0,0,0,0,0,0,0,0,0,0,14,11,11,653,609,608,594,973,980,1065,1071,1096,1088,1087,1089,2391,1125,1050,1044]} 1. e4 {[%emt 0:00:03]} e5 {[%emt 0:00:07]} 2. Nf3 {[%emt 0:00:07]} Nc6 {[%emt 0:00:06]} 3. Bc4 {[%emt 0:00:07]} Nf6 {[%emt 0:00:06]} 4. d3 {[%emt 0:00:10]} Be7 {[%emt 0:00:05]} 5. O-O {[%emt 0:00:11]} O-O {[%emt 0:00:07]} 6. Re1 {[%emt 0:00:06]} d6 {[%emt 0:00:09]} 7. a4 {[%emt 0:00:09]} Na5 {[%emt 0:00:15]} 8. Ba2 {[%emt 0:00:09]} c5 {[%emt 0:00:06]} 9. c3 {[%emt 0:00:09]} Nc6 {[%emt 0:00:08]} 10. Na3 {[%emt 0:00:15] White is slightly better.} a6 {[%emt 0:00:18]} 11. Bd2 {[%emt 0:00:34]} Rb8 {[%emt 0:02:19]} 12. Nc4 {[%emt 0:21:52]} Be6 {[%emt 0:08:19]} 13. b4 {[%emt 0:06:35]} b5 {[%emt 0:06:57]} 14. axb5 {[%emt 0:00:45]} axb5 {[%emt 0:00:05] [#]} 15. Na5 {[%emt 0:00:48]} Nxa5 {[%emt 0:01:25]} 16. Bxe6 {[%emt 0:00:09]} ({Reject} 16. bxa5 Bxa2 17. Rxa2 Ra8 $15) 16... fxe6 {[%emt 0:01:35]} 17. Rxa5 {[%emt 0:00:03]} cxb4 {[%emt 0:00:12]} 18. cxb4 {[%emt 0:00:09]} Qd7 {[%emt 0:02:26]} 19. Qb3 {[%emt 0:01:38]} Bd8 {[%emt 0:04:39]} 20. Ra6 {[%emt 0:05:13]} Bb6 {[%emt 0:00:41]} 21. h3 {[%emt 0:11:06]} h6 {[%emt 0:08:18]} 22. Qa2 {[%emt 0:02:06]} Rfc8 {[%emt 0:06:20]} 23. Be3 {[%emt 0:11:36]} Bxe3 {[%emt 0:00:58]} 24. Rxe3 {[%emt 0:00:36]} Rc1+ {[%emt 0:13:10]} 25. Kh2 {[%emt 0:03:41]} Rbc8 {[%emt 0:00:12] Hoping for ...R8c2.} 26. Rb6 {[%emt 0:02:23]} (26. Ra7 $11 {is more appropriate.} R1c7 27. Rxc7 Rxc7 28. Re2) 26... R1c2 {[%emt 0:05:38]} (26... Kh7 $1 $15 {deserves consideration.} 27. Re2 (27. Qa6 $2 Qf7 $19) 27... Qf7) 27. Qa6 $11 {[%emt 0:00:58][%csl LRb5,LRd6]} R8c6 {[%emt 0:00:06]} 28. Qxb5 {[%emt 0:09:16]} Rxb6 {[%emt 0:00:08]} 29. Qxb6 {[%emt 0:00:05]} Rxf2 {[%emt 0:00:10]} 30. Re1 {[%emt 0:05:58][%cal Be3e1,Be1a1,Ba1a8][%mdl 32]} Rc2 {[%emt 0:01:41]} 31. Ra1 {[%emt 0:00:29]} Rc6 {[%emt 0:04:41]} 32. Ra8+ {[%emt 0:00:42]} Kh7 {[%emt 0:01:32][%cal Bg8h7,Bh7g6,Bg6g5,Bg5h4][%mdl 32]} 33. Qb8 {[%emt 0:00:47]} Qc7 $2 {[%emt 0:01:32][%mdl 8192] Black cannot hold the game after this.} (33... Qf7 $11) 34. Qh8+ {[%emt 0:01:43] White is clearly winning.} Kg6 {[%emt 0:00:07]} 35. Nh4+ {[%emt 0:02:50]} Kg5 {[%emt 0:00:37] [#]} 36. Rc8 $3 {[%emt 0:01:57][%mdl 512]} Kxh4 {[%emt 0:13:00]} 37. Rxc7 {[%emt 0:00:41]} Rxc7 {[%emt 0:00:05]} 38. Qd8 {[%emt 0:01:27]} Rd7 {[%emt 0:02:04]} 39. Qc8 {[%emt 0:00:35]} d5 {[%emt 0:01:51]} 40. b5 {[%emt 0:00:00]} (40. Qb8 $142 Kh5 41. Qxe5+ Kg6 42. Qxe6 dxe4 43. dxe4) 40... dxe4 $18 {[%emt 0:00:00]} 41. dxe4 {[%emt 0:00:59] Weighted Error Value: White=0.09 (flawless) /Black=0.25 (precise) .  Loses game:     	---       	Black=1      Mistake:       	White=1     	Black=1      Inaccurate:     	White=1     	---        OK:         	White=8     	Black=11     Best:        	White=2     	Black=4      Brilliant:      	White=1     	---} 1-0

[Event "Austrian Bundesliga 2023-24"]
[Site "Austria"]
[Date "2024.03.21"]
[Round "8.7"]
[White "Dragnev, Valentin"]
[Black "Brkic, Ante"]
[Result "0-1"]
[ECO "B95"]
[WhiteElo "2575"]
[BlackElo "2633"]
[Annotator "TA"]
[PlyCount "68"]
[EventDate "2023.10.21"]
[EventType "team-tourn"]
[EventCountry "AUT"]
[SourceTitle "playchess.com"]
[Source "ChessBase"]
[SourceQuality "1"]
[TimeControl "40/5400+30:1800+30"]

{[%evp 12,68,7,10,2,14,32,24,27,16,18,26,15,0,11,18,21,-17,-13,-91,-94,-137,-151,-168,-143,-166,-142,-160,-166,-204,-63,-99,-109,-97,-107,-110,-101,-83,-83,-63,-73,-58,-24,-14,0,0,0,-18,-21,-95,-83,-83,-73,-69,-64,-118,-32,-865,-843]} 1. e4 {[%emt 0:00:16]} c5 {[%emt 0:00:07]} 2. Nf3 {[%emt 0:00:06]} d6 {[%emt 0:00:04]} 3. d4 {[%emt 0:00:11]} cxd4 {[%emt 0:00:06]} 4. Nxd4 {[%emt 0:00:05]} Nf6 {[%emt 0:00:18]} 5. Nc3 {[%emt 0:00:03]} a6 {[%emt 0:00:04]} 6. Bg5 {[%emt 0:00:13]} e6 {[%emt 0:00:30]} 7. Qf3 {[%emt 0:00:14]} h6 {[%emt 0:07:23]} 8. Bd2 {[%emt 0:01:35]} Qb6 {[%emt 0:03:15]} 9. Nb3 {[%emt 0:00:41]} Qc7 {[%emt 0:00:26] White has an edge.} 10. a4 {[%emt 0:02:18]} Bd7 {[%emt 0:02:17][%cal Bc8d7,Bd7c6,Bc6e4,Be4g6][%mdl 32]} 11. Be2 {[%emt 0:13:58]} Bc6 {[%emt 0:22:47]} 12. O-O {[%emt 0:05:34]} Nbd7 {[%emt 0:00:20]} 13. Nd4 {[%emt 0:07:59]} Be7 {[%emt 0:00:23]} 14. b4 {[%emt 0:02:31]} Ne5 {[%emt 0:02:18]} 15. Qg3 {[%emt 0:08:48]} (15. Qf4 $11) 15... Bxe4 $17 {[%emt 0:24:52]} 16. f3 {[%emt 0:09:24]} (16. Qxg7 $2 O-O-O 17. g3 d5 18. Nxe4 Nxe4 19. Nxe6 fxe6 $19) (16. Nxe4 $2 Nxe4 17. Qe3 d5 $19) 16... Bg6 {[%emt 0:06:43]} 17. Nxe6 {[%emt 0:13:04]} fxe6 {[%emt 0:02:02]} 18. f4 {[%emt 0:00:23] [#]} Bf5 $1 {[%emt 0:03:25]} 19. fxe5 {[%emt 0:03:47]} dxe5 {[%emt 0:00:01]} 20. Kh1 {[%emt 0:00:45]} Bd6 {[%emt 0:05:01]} (20... Bxc2 $2 21. Rac1 $18 (21. Qxg7 O-O-O $15)) (20... Bxb4 21. Nb5 axb5 22. Bxb5+ (22. Bxb4 Kf7 $11) 22... Kf7 23. Bxb4 $15) (20... Rd8 $19 21. Qe1 (21. Qxg7 $2 Rh7 $19) 21... Rxd2 (21... Bxb4 22. Nb5 $15) 22. Qxd2 O-O (22... Bxb4 $2 23. Nb5 $19)) 21. Rxf5 $1 $15 {[%emt 0:10:05]} exf5 {[%emt 0:00:10]} 22. Qg6+ {[%emt 0:00:03]} Qf7 {[%emt 0:05:12]} 23. Qxf5 {[%emt 0:00:02]} O-O {[%emt 0:02:22]} (23... Bxb4 $6 24. Nb5 O-O 25. Bxb4 axb5 26. Bxf8 Qxf8 27. Bxb5 $11) 24. Ne4 {[%emt 0:00:28]} Qd5 {[%emt 0:02:39]} 25. Bd3 {[%emt 0:07:38]} Nxe4 {[%emt 0:04:02]} 26. Bxe4 {[%emt 0:00:27]} Qxd2 {[%emt 0:00:22]} (26... Rxf5 {simplifies} 27. Bxd5+ Kf8 28. Bxb7 Rb8) 27. Qe6+ {[%emt 0:00:56]} Kh8 {[%emt 0:01:16]} 28. Qg6 {[%emt 0:00:03][%csl Ge4][%cal Rg6h7]} Kg8 {[%emt 0:00:09]} (28... Bxb4 29. Qh7#) 29. Qe6+ $1 {[%emt 0:00:26]} Rf7 {[%emt 0:02:16]} (29... Kh8 30. Qg6 Kg8 (30... Bxb4 31. Qh7#) 31. Qe6+) 30. Rf1 {[%emt 0:01:11]} (30. Bg6 $1 $11 {remains equal.}) 30... Raf8 $1 $17 {[%emt 0:00:47][%cal Og8h8] ( -> ...Kh8!)} 31. Bg6 {[%emt 0:00:14][%cal Rf1f7] [#]} Kh8 $1 {[%emt 0:00:25]} 32. Bxf7 {[%emt 0:00:07]} Qxb4 {[%emt 0:03:07]} 33. h3 {[%emt 0:04:03]} (33. Qc4 $1 $15) 33... Bc7 {[%emt 0:00:37]} ({Better is} 33... e4 $1 $17 {[%cal Ob4d4] Strongly threatening ...Qd4!} 34. c3 Qa3) 34. Rd1 $2 {[%emt 0:02:23][%mdl 8192] [#] Wards off Qd4} (34. Qd7 $15 Qd6 35. Qxd6 Bxd6 36. g4) 34... Qf4 $1 {[%emt 0:00:19] Weighted Error Value: White=0.37/Black=0.16 (very precise) .  Loses game:     	White=1     	---        Mistake:       	White=3     	Black=2      Inaccurate:     	White=2     	Black=1      OK:         	White=9     	Black=8      Best:        	White=4     	Black=2      Strong:       	White=2     	Black=3} ({Weaker is} 34... Qxa4 35. Qe7 Rc8 36. Be6 $15) 0-1

[Event "Austrian Bundesliga 2023-24"]
[Site "Austria"]
[Date "2024.03.21"]
[Round "8.8"]
[White "Martinovic, Sasa"]
[Black "Blohberger, Felix"]
[Result "1-0"]
[ECO "E12"]
[WhiteElo "2558"]
[BlackElo "2531"]
[Annotator "RC"]
[PlyCount "77"]
[EventDate "2023.10.21"]
[EventType "team-tourn"]
[EventCountry "AUT"]
[SourceTitle "playchess.com"]
[Source "ChessBase"]
[SourceQuality "1"]
[TimeControl "40/5400+30:1800+30"]

1. d4 {[%emt 0:00:02]} Nf6 {[%emt 0:00:07]} 2. c4 {[%emt 0:00:03]} e6 {[%emt 0:00:06]} 3. Nf3 {[%emt 0:00:06]} b6 {[%emt 0:00:08]} 4. a3 {[%emt 0:00:16]} Bb7 {[%emt 0:00:09]} 5. Nc3 {[%emt 0:00:11]} Ne4 {[%emt 0:00:11]} 6. Nxe4 {[%emt 0:00:25]} Bxe4 {[%emt 0:03:01]} 7. Bf4 {[%emt 0:00:05]} d6 {[%emt 0:01:24]} 8. e3 {[%emt 0:00:20]} Be7 {[%emt 0:00:15]} 9. Bd3 {[%emt 0:00:18]} Bxd3 {[%emt 0:00:09]} 10. Qxd3 {[%emt 0:00:03]} Nd7 {[%emt 0:00:09]} 11. Rd1 {[%emt 0:05:08]} O-O {[%emt 0:03:52]} 12. e4 {[%emt 0:01:25]} c6 {[%emt 0:18:50]} 13. O-O {[%emt 0:01:39]} a6 {[%emt 0:04:23]} 14. e5 {[%emt 0:16:45]} d5 {[%emt 0:04:03]} 15. Rc1 {[%emt 0:15:19]} dxc4 {[%emt 0:08:22]} 16. Rxc4 {[%emt 0:08:27]} c5 {[%emt 0:04:11]} 17. Rc2 {[%emt 0:03:03]} b5 {[%emt 0:08:08]} 18. dxc5 {[%emt 0:00:34]} Nxc5 {[%emt 0:00:24]} 19. Qe3 {[%emt 0:02:47]} Qd5 {[%emt 0:01:27]} 20. Bg5 {[%emt 0:05:29]} f6 {[%emt 0:08:27]} 21. exf6 {[%emt 0:01:59]} gxf6 {[%emt 0:00:12]} 22. Bh6 {[%emt 0:00:48]} Rfd8 {[%emt 0:04:59]} 23. b4 {[%emt 0:08:31]} Ne4 {[%emt 0:02:45]} 24. Rc7 {[%emt 0:05:41]} Kf7 {[%emt 0:07:31]} 25. Re1 {[%emt 0:01:47]} Nd6 {[%emt 0:02:10]} 26. Rc5 {[%emt 0:09:03]} Qa2 {[%emt 0:00:09]} 27. Nd4 {[%emt 0:02:56]} e5 {[%emt 0:01:48]} 28. Qd3 {[%emt 0:01:23]} e4 {[%emt 0:04:06]} 29. Qh3 {[%emt 0:00:31]} Nb7 {[%emt 0:01:25]} 30. Qh5+ {[%emt 0:01:44]} Kg8 {[%emt 0:00:25]} 31. Qg4+ {[%emt 0:03:23]} Kf7 {[%emt 0:00:06]} 32. Qg7+ {[%emt 0:00:25]} Ke8 {[%emt 0:00:06]} 33. Rc7 {[%emt 0:01:17]} Rd7 {[%emt 0:00:10]} 34. Qh8+ {[%emt 0:00:44]} Kf7 {[%emt 0:00:07]} 35. Qg7+ {[%emt 0:00:21]} Ke8 {[%emt 0:00:06]} 36. Qh8+ {[%emt 0:00:02]} Kf7 {[%emt 0:00:05]} 37. Qxh7+ {[%emt 0:00:02]} Ke8 {[%emt 0:00:06]} 38. Qg6+ {[%emt 0:01:41]} Kd8 {[%emt 0:00:27]} 39. Rxd7+ {[%emt 0:00:38]} 1-0

[Event "Austrian Bundesliga 2023-24"]
[Site "Austria"]
[Date "2024.03.21"]
[Round "8.9"]
[White "Peyrer, Konstantin"]
[Black "Livaic, Leon"]
[Result "1/2-1/2"]
[ECO "A41"]
[WhiteElo "2434"]
[BlackElo "2558"]
[Annotator "TA"]
[PlyCount "59"]
[EventDate "2023.10.21"]
[EventType "team-tourn"]
[EventCountry "AUT"]
[SourceTitle "playchess.com"]
[Source "ChessBase"]
[SourceQuality "1"]
[TimeControl "40/5400+30:1800+30"]

{[%evp 11,59,8,14,5,20,-25,-20,-70,-20,-52,-22,-32,-31,-33,-16,-10,0,-11,-15,-8,-22,-21,-18,-24,0,-6,-6,0,-16,-25,-16,-57,0,-27,-4,-14,12,0,0,0,16,0,8,4,27,0,19,0,35,0]} 1. d4 {[%emt 0:00:09]} d6 {[%emt 0:00:47]} 2. c4 {[%emt 0:00:55]} e5 {[%emt 0:00:42]} 3. Nf3 {[%emt 0:00:08]} e4 {[%emt 0:00:31]} 4. Nfd2 {[%emt 0:00:07]} f5 {[%emt 0:00:46]} 5. Nc3 {[%emt 0:03:30]} Nf6 {[%emt 0:00:41]} 6. e3 {[%emt 0:00:13]} c5 {[%emt 0:03:29]} 7. Be2 {[%emt 0:15:38]} Nc6 {[%emt 0:04:37]} 8. b3 {[%emt 0:10:34]} g6 {[%emt 0:04:44]} 9. Bb2 {[%emt 0:08:24]} ({Better is} 9. Ndb1 $11) 9... Bg7 {[%emt 0:00:30]} (9... cxd4 $15 10. exd4 Bg7) 10. O-O {[%emt 0:11:08]} O-O {[%emt 0:08:37]} 11. dxc5 {[%emt 0:04:15]} dxc5 {[%emt 0:00:06]} 12. f3 {[%emt 0:00:05][%cal Rf3e4]} Bh6 {[%emt 0:27:37]} 13. Nd5 {[%emt 0:00:12]} (13. f4 {simplifies} Bg7 14. a3 Qe7 15. Qc2) 13... Nxd5 {[%emt 0:02:15]} 14. cxd5 {[%emt 0:01:11]} Bxe3+ {[%emt 0:00:39]} 15. Kh1 {[%emt 0:00:04]} Bd4 {[%emt 0:01:19]} (15... Qxd5 $2 16. Bc4 $18) 16. Bxd4 {[%emt 0:02:55]} Nxd4 {[%emt 0:00:21]} 17. fxe4 {[%emt 0:00:09]} b6 {[%emt 0:09:08][%cal Bb7b6,Bb6b5][%mdl 32]} 18. Bc4 {[%emt 0:07:45] aiming for Nf3.} b5 {[%emt 0:01:25]} 19. Bd3 {[%emt 0:00:29]} Bb7 {[%emt 0:00:40]} 20. Rc1 {[%emt 0:08:46]} Rc8 {[%emt 0:04:50][%cal Ba8c8,Bc8c7,Bc7f7][%mdl 32]} 21. Qe1 {[%emt 0:07:17]} Qd6 {[%emt 0:05:30]} (21... fxe4 $15 22. Nxe4 Qxd5 23. Rxf8+ Rxf8 24. Rxc5 Qf7) 22. Qh4 {[%emt 0:01:49]} Rc7 {[%emt 0:08:34]} 23. Nf3 {[%emt 0:04:27]} Nxf3 {[%emt 0:02:09]} 24. Rxf3 {[%emt 0:01:22]} fxe4 {[%emt 0:05:10]} 25. Bxe4 {[%emt 0:01:08]} Rcf7 {[%emt 0:01:55]} (25... Bxd5 $2 {perishes.} 26. Rd1 $18) 26. Qf2 {[%emt 0:02:30]} Qe5 {[%emt 0:01:37]} 27. Re1 {[%emt 0:01:40][%cal Oe4g6] Hoping for Bxg6!} Qd6 {[%emt 0:03:12]} 28. Rc1 {[%emt 0:01:55]} Qe5 {[%emt 0:00:11]} 29. Re1 {[%emt 0:00:10][%cal Oe4g6] Bxg6! is the strong threat.} Qd6 {[%emt 0:00:03]} 30. Rc1 {Weighted Error Value: White=0.15 (very precise) /Black=0.15 (very precise) .  Mistake:       	White=1     	Black=2      Inaccurate:     	White=5     	Black=2      OK:         	White=5     	Black=8      Best:        	White=1     	Black=1} 1/2-1/2